Cogmind - Beta 11.1 @@@ ROGUE MODE // 2022.07.04 @ 01:00:03 Player: Roadie Result: Destroyed by D-53 Grenadier with Mini Grenade Launcher Performance ------------- Evolutions (1) 500 Regions Visited (4) 800 Robots Destroyed (25) 125 Value Destroyed (654) 654 Prototype IDs (3) 60 Alien Tech Used (0) 0 Bonus (50) 50 TOTAL SCORE: 2189 Bonus ------- High Alert Combat Kills 50 Cogmind --------- Core Integrity 0/400 Matter 160/300 Energy 71/100 System Corruption 5% Temperature Cool (0) Movement Core (50) Location -9/Mines Parts ------- > --- POWER (1) -------- (None) > --- PROPULSION (2) --- (None) > --- UTILITY (4) ------ (None) > --- WEAPON (2) ------- (None) > --- INVENTORY (5) ---- Improved Sensor Array Reflective Plating Shield Generator Particle Cannon Grenade Launcher Peak State ------------ > --- POWER ------------ (None) > --- PROPULSION ------- Compact Wheel Compact Wheel > --- UTILITY ---------- Small Storage Unit Improved Sensor Array Signal Interpreter Seismic Detector > --- WEAPON ----------- Assault Cannon Assault Cannon > --- INVENTORY -------- Light Ion Engine Large Storage Unit Hardened Light Armor Plating Reflective Plating Medium Laser Medium Laser Small Laser Grenade Launcher [Rating: 15] Favorites ----------- Power Ion Engine Engine Ion Engine Propulsion Compact Wheel Wheel Compact Wheel Hover Unit Hover Unit Utility Small Storage Unit Device Seismic Detector Storage Small Storage Unit Processor Signal Interpreter Protection Hardened Light Armor Plating Weapon Particle Cannon Energy Gun Medium Laser Energy Cannon Particle Cannon Ballistic Cannon Assault Cannon Launcher Grenade Launcher Build | -11 -10 -10 -9 -9 ------- Run | Scr Mat Min Mat Min Slots Evolved 2 | . . . 2 . Power . | . . . . . Propulsion . | . . . . . Utility 2 | . . . 2 . Weapon . | . . . . . Parts Attached 32 | 7 4 2 16 3 Power 4 | 2 . . 2 . Engine 4 | 2 . . 2 . Core . | . . . . . Reactor . | . . . . . Propulsion 4 | 2 . . . 2 Treads . | . . . . . Leg . | . . . . . Wheel 2 | 2 . . . . Hover 2 | . . . . 2 Flight . | . . . . . Utility 13 | 1 2 2 7 1 Device 3 | . . . 2 1 Storage 4 | 1 1 2 . . Processor 1 | . 1 . . . Hackware . | . . . . . Protection 5 | . . . 5 . Artifact . | . . . . . Weapon 11 | 2 2 . 7 . Energy Gun 3 | 2 1 . . . Energy Cannon 4 | . . . 4 . Ballistic Gun . | . . . . . Ballistic Cannon 2 | . . . 2 . Launcher 2 | . 1 . 1 . Special Weapon . | . . . . . Impact Weapon . | . . . . . Slashing Weapon . | . . . . . Piercing Weapon . | . . . . . Special Melee Weapon . | . . . . . Unidentified Prototypes . | . . . . . Parts Lost 9 | . . . 1 8 Power 2 | . . . 1 1 Propulsion 4 | . . . . 4 Utility 2 | . . . . 2 Weapon 1 | . . . . 1 Highest Loss Streak 8 | . . . 1 8 To Critical Strikes . | . . . . . Average Slot Usage (%) 92 | . 90 100 86 87 Engine 8 | . 14 14 1 8 Wheel 24 | . 28 28 22 14 Device 5 | . . . 10 9 Storage 12 | . 14 14 11 11 Processor 11 | . 5 14 11 11 Protection 4 | . . . 9 7 Energy Gun 8 | . 22 14 2 . Energy Cannon 7 | . . . 15 20 Launcher 7 | . 5 14 3 . Naked Turns 4 | . . . . 4 Heaviest Build 24 | 13 15 15 24 24 Greatest Support 32 | 32 32 32 32 32 Greatest Overweight (x) 2 | . . . . 2 Average Overweight (x) . | . . . . . Largest Inventory Capacity 15 | 8 8 15 8 8 Average Capacity 7 | 6 8 8 8 7 Most Carried 8 | 2 4 4 8 8 Average Carried 4 | . 3 3 6 7 Final Capacity 8 | 8 8 8 8 5 Final Carried 8 | 1 3 4 8 5 Class Distribution -------------------- 100% | Mutant Dominant Class ---------------- Mutant | -10/Materials Mutant | -10/Mines Mutant | -9/Materials Mutant | -9/Mines Resources | -11 -10 -10 -9 -9 ----------- Run | Scr Mat Min Mat Min Matter Collected 523 | 206 . 92 215 10 Remotely . | . . . . . Salvage Created 536 | . 4 96 387 49 Parts 42 | . . 3 38 1 Haulers Intercepted . | . . . . . Recyclers Shooed . | . . . . . Parts Field Recycled . | . . . . . Retrieved Matter . | . . . . . Parts Self-Destructed . | . . . . . Prevented . | . . . . . Kills | -11 -10 -10 -9 -9 ------- Run | Scr Mat Min Mat Min Combat Hostiles Destroyed 21 | . . 4 15 2 Guns 1 | . . 1 . . Cannons 10 | . . . 8 2 AOE 10 | . . 3 7 . Classes Destroyed 7 | . 1 1 4 1 Worker 1 | . . . 1 . Operator 1 | . . . 1 . Watcher 3 | . 1 . 2 . Swarmer 10 | . . . 10 . Grunt 7 | . . 4 2 1 Sentry 3 | . . . 3 . Assembled 1 | . . . . 1 Best Kill Streak 5 | . 1 2 5 1 Combat Bots Only 4 | . . 2 4 1 Max Kills in Single Turn 4 | . 1 2 4 1 Gunslinging . | . . . . . Exploded 3 | . . 1 3 . Melee . | . . . . . Uniques/NPCs Destroyed . | . . . . . Combat | -11 -10 -10 -9 -9 -------- Run | Scr Mat Min Mat Min Damage Taken 1431 | . . 193 565 673 Core 476 | . . 61 226 189 Absorbed by Shields . | . . . . . Regen/Repaired (Parts) 35 | . . . 35 . Core Remaining (%) 87 | 100 . 75 . . Volleys Fired 47 | . 3 10 22 12 Largest 2 | . 2 2 2 2 Hottest 136 | . 80 80 136 136 Shots Fired 90 | . 5 20 43 22 Gun 20 | . 3 10 7 . Cannon 50 | . . . 28 22 Launcher 20 | . 2 10 8 . Special . | . . . . . Kinetic . | . . . . . Thermal 70 | . 3 10 35 22 Explosive 20 | . 2 10 8 . Electromagnetic . | . . . . . Robot Hit Streak 5 | . 1 3 5 2 Robot Miss Streak 3 | . 2 1 3 2 Penetration Max . | . . . . . Secondary Targets . | . . . . . Shots Hit Robots 38 | . 2 8 19 9 Core Hits 32 | . 1 9 20 2 Critical Kills . | . . . . . Critical Parts Destroyed . | . . . . . Critical Strikes . | . . . . . Melee Attacks . | . . . . . Impact . | . . . . . Slashing . | . . . . . Piercing . | . . . . . Sneak Attacks . | . . . . . Combat Hostiles . | . . . . . Follow-up Attacks . | . . . . . Damage Inflicted 1381 | . 57 359 757 208 Guns 86 | . 12 37 37 . Cannons 496 | . . . 288 208 Explosions 799 | . 45 322 432 . Melee . | . . . . . Ramming . | . . . . . Kinetic . | . . . . . Thermal 665 | . 12 37 408 208 Explosive 716 | . 45 322 349 . Electromagnetic . | . . . . . Impact . | . . . . . Slashing . | . . . . . Piercing . | . . . . . Highest Corruption 5 | . . . . 5 Average Corruption 5 | . . . . 5 Corruption Purged . | . . . . . Corruption Blocked . | . . . . . Overload Shots . | . . . . . Overflow Damage 116 | . 25 . 79 12 Projectiles 14 | . . . 2 12 Explosions 102 | . 25 . 77 . Melee . | . . . . . Knockbacks . | . . . . . Impact . | . . . . . Kinetic . | . . . . . Secondary . | . . . . . Self-Inflicted Damage 228 | . . . 228 . Shots 5 | . . . 5 . Rammed . | . . . . . Targets Rammed . | . . . . . Kicked . | . . . . . Crushed . | . . . . . Highest Temperature 490 | . 28 124 222 490 Average Temperature 107 | . 14 55 63 224 Received Heat Transfer 440 | . . 105 51 284 Effects 7 | . . . . 7 Shutdowns 1 | . . . . 1 Interference 3 | . . . . 3 Damage (minor) 3 | . . . . 3 Siege Activations . | . . . . . Robots Corrupted . | . . . . . Combat Hostiles . | . . . . . Parts Fried . | . . . . . Impact Corruptions . | . . . . . Robots Melted . | . . . . . Combat Hostiles . | . . . . . Parts Melted 1 | . . . 1 . Heat Transferred 1197 | . 37 111 679 370 Parts Sabotaged . | . . . . . Parts Stolen . | . . . . . Parts Stripped . | . . . . . Power Chain Reactions . | . . . . . Missiles Intercepted . | . . . . . Alert | -11 -10 -10 -9 -9 ------- Run | Scr Mat Min Mat Min Peak Influence 601 | . 67 302 601 294 Initial 229 | . . 25 39 229 Average 263 | . 15 178 417 254 Maximum Alert Level 2 | . . 1 2 1 Low Security (%) 42 | 100 100 70 5 . Level 1 34 | . . 29 36 100 Level 2 23 | . . . 57 . Level 3 . | . . . . . Level 4 . | . . . . . Level 5 . | . . . . . High Security . | . . . . . Max Security . | . . . . . Squads Dispatched 2 | . . . 2 . Investigation . | . . . . . Extermination . | . . . . . Reinforcement 2 | . . . 2 . Assault . | . . . . . Garrison . | . . . . . Intercept . | . . . . . Searches Triggered . | . . . . . Construction Impeded . | . . . . . Haulers Reinforced . | . . . . . Active Scanning Responses . | . . . . . Cargo Convoy Interrupts . | . . . . . Stealth | -11 -10 -10 -9 -9 --------- Run | Scr Mat Min Mat Min Distress Signals 1 | . . . 1 . Communications Jammed . | . . . . . Distress Signals . | . . . . . Times Spotted 39 | . 2 4 21 12 Peak Tracking Total 5 | . 2 2 5 5 Tactical Retreats 1 | . . . . 1 Traps | -11 -10 -10 -9 -9 ------- Run | Scr Mat Min Mat Min Traps Triggered . | . . . . . Indirectly . | . . . . . Trap Hack Attempts . | . . . . . Triggered . | . . . . . Disarmed . | . . . . . Reprogrammed . | . . . . . Reused . | . . . . . Traps Extracted . | . . . . . Installed . | . . . . . Triggered . | . . . . . Machines | -11 -10 -10 -9 -9 ---------- Run | Scr Mat Min Mat Min Machines Disabled 10 | . 1 2 4 3 Max in Single Turn 2 | . 1 1 2 1 Machines Sabotaged . | . . . . . Garrisons Compromised . | . . . . . Overloaded Fab Kills . | . . . . . Hacking | -11 -10 -10 -9 -9 --------- Run | Scr Mat Min Mat Min Machines Accessed 3 | . . . 3 . Terminals 1 | . . . 1 . Fabricators . | . . . . . Repair Stations 1 | . . . 1 . Recycling Units 1 | . . . 1 . Scanalyzers . | . . . . . Garrison Access . | . . . . . Total Hacks 9 | . . . 9 . Successful 6 | . . . 6 . Failed 3 | . . . 3 . Catastrophic . | . . . . . Database Lockouts . | . . . . . Manual . | . . . . . Terminals 2 | . . . 2 . Fabricators . | . . . . . Repair Stations 2 | . . . 2 . Recycling Units 5 | . . . 5 . Scanalyzers . | . . . . . Garrison Access . | . . . . . Terminal Hacks 1 | . . . 1 . Prototype ID Bank 1 | . . . 1 . Fabricator Hacks . | . . . . . Repair Station Hacks 2 | . . . 2 . Scan Component 1 | . . . 1 . Repair 1 | . . . 1 . Recycling Unit Hacks 3 | . . . 3 . Process 1 | . . . 1 . Report Inventory 1 | . . . 1 . Retrieve Matter 1 | . . . 1 . Scanalyzer . | . . . . . Garrison Access Hacks . | . . . . . Unauthorized Hacks . | . . . . . Terminals . | . . . . . Fabricators . | . . . . . Repair Stations . | . . . . . Recycling Units . | . . . . . Scanalyzers . | . . . . . Garrison Access . | . . . . . Data Cores Recovered . | . . . . . Used . | . . . . . Hacking Detections 2 | . . . 2 . Full Trace Events . | . . . . . Feedback Events . | . . . . . Feedback Blocked . | . . . . . Robot Schematics Acquired . | . . . . . Robots Built . | . . . . . Authchips . | . . . . . Time . | . . . . . Total Robot Build Rating . | . . . . . Part Schematics Acquired . | . . . . . Parts Built . | . . . . . Authchips . | . . . . . Time . | . . . . . Total Part Build Rating . | . . . . . Parts Repaired 1 | . . . 1 . Time 32 | . . . 32 . Parts Recycled . | . . . . . Recycled Matter 12 | . . . 12 . Retrieved Matter 12 | . . . 12 . Retrieved Components . | . . . . . Parts Scanalyzed . | . . . . . Part Schematics Acquired . | . . . . . Parts Damaged . | . . . . . Bothacking | -11 -10 -10 -9 -9 ------------ Run | Scr Mat Min Mat Min Used RIF Installer . | . . . . . Robots Hacked . | . . . . . Non-combat . | . . . . . Combat . | . . . . . Robot Hacks Applied . | . . . . . Relay Couplers Released . | . . . . . Fabnet Peak Effective % . | . . . . . Robots Rewired . | . . . . . Allies Hacked . | . . . . . Hacks Repelled . | . . . . . Allies | -11 -10 -10 -9 -9 -------- Run | Scr Mat Min Mat Min Total Allies . | . . . . . Largest Group . | . . . . . Highest-Rated Group . | . . . . . Highest-Rated Ally . | . . . . . Total Orders . | . . . . . Ally Attacks . | . . . . . Total Damage . | . . . . . Kills . | . . . . . Allies Corrupted . | . . . . . Allies Melted . | . . . . . Intel | -11 -10 -10 -9 -9 ------- Run | Scr Mat Min Mat Min Robot Analysis Total . | . . . . . Derelict Logs Recovered 3 | . . 2 . 1 Drone Launches . | . . . . . Drone Recoveries . | . . . . . Exploration | -11 -10 -10 -9 -9 ------------- Run | Scr Mat Min Mat Min Turns Passed 1364 | 58 74 586 546 100 Spaces Moved 1060 | 41 57 520 384 58 Core 11 | 4 . . . 7 Treads . | . . . . . Legs . | . . . . . Wheels 1031 | 37 57 520 384 33 Hover 18 | . . . . 18 Flight . | . . . . . Fastest Speed 50 | 50 100 100 100 50 Average Speed 100 | 95 100 100 100 104 Slowest Speed 180 | 100 100 100 100 180 Overloaded Moves . | . . . . . Propulsion Burnouts . | . . . . . Robots Hopped . | . . . . . Cave-ins Triggered . | . . . . . Exploration Rate (%) 32 | 3 15 92 35 17 Regions Visited 4 Branch Regions 2 Pre-discovered Areas 2 | . . 2 . . Known Exits Taken 3 | . 1 1 1 . Unknown Exits Taken 1 | 1 . . . . Scrap Searched 2 | . . 2 . . Spaces Dug . | . . . . . Terrain Destroyed 153 | . 15 73 64 1 Melee . | . . . . . Projectile 1 | . . . . 1 AOE 152 | . 15 73 64 . Terrain Rammed . | . . . . . Walls Destroyed . | . . . . . Machines Disabled . | . . . . . Actions | -11 -10 -10 -9 -9 --------- Run | Scr Mat Min Mat Min Total 1270 | 59 68 565 502 76 Wait 91 | 5 . 33 53 . Move 1056 | 40 56 519 383 58 Hop . | . . . . . Pick Up 30 | 7 4 1 18 . Fast Attach . | . . . . . Attach 14 | 6 2 . 4 2 Detach 2 | . . . . 2 Swap 18 | 1 2 2 12 1 Drop 12 | . 1 . 10 1 Fire 47 | . 3 10 22 12 Melee . | . . . . . Ram . | . . . . . Kick . | . . . . . Crush . | . . . . . Escape Stasis . | . . . . . Rewire . | . . . . . Trap . | . . . . . Miscellaneous . | . . . . . Route ------- -11/Scrapyard -10/Materials -10/Mines (discovered 2 exits: *Mat x2) -9/Materials (discovered 2 exits: *Mat / *Min) -9/Mines History --------- Turn | Location | Event 18 | -11/Scrapyard | Discovered new exit (range 15) 59 | -11/Scrapyard | Entered Materials 101 | -10/Materials | Discovered new exit (range 16) 132 | -10/Materials | Identified exit to Mines 133 | -10/Materials | Entered Mines 139 | -10/Mines | Learned location of Storage (-8) 301 | -10/Mines | Build established: Mutant 310 | -10/Mines | Identified exit to Materials 426 | -10/Mines | Discovered exit to Materials (range 9) 719 | -10/Mines | Entered Materials 719 | -9/Materials | Evolved 2 slots: Utility x2 1001 | -9/Materials | Discovered new exit (range 10) 1010 | -9/Materials | Identified exit to Materials 1034 | -9/Materials | Core integrity fell below 50% 1102 | -9/Materials | Repaired Particle Cannon 1136 | -9/Materials | Discovered new exit (range 8) 1182 | -9/Materials | Identified exit to Mines 1265 | -9/Materials | Entered Mines 1266 | -9/Mines | Assembled infested the area 1271 | -9/Mines | Assisted by a Guerilla fighting off Assembled 1336 | -9/Mines | Core integrity fell below 20% 1350 | -9/Mines | Learned location of 1 exit from Materials 1365 | -9/Mines | Destroyed by D-53 Grenadier with Mini Grenade Launcher Last Messages --------------- Particle Cannon temporarily disabled. HV Slug penetrates Laser Drill. Laser Drill disabled. PQ-1XI(h) destroyed. Laser Drill disabled. as-08653 destroyed. Com. Wheel destroyed. Lgt. Armor Plating destroyed. Imp. Ion Engine destroyed. System corrupted by crushing effect (+5). Hover Unit destroyed. Acquired 10 matter. Knocked back. Acquired derelict log, extracted data. Data stored: Materials exits (x1). Heat Sink destroyed. Particle Cannon destroyed. Hover Unit destroyed. Discarded Signal Interpreter. Dropped Sml. Storage Unit. Map ----- +----------------------------------------------------+ | ????????????????????????????????????????????? | | ????????????????????????????????????????????? | | ????????????????????????????????????????????? | | ????????????????????????####################? | | ????????????????????????# #? | | ????????????????????????# """ """ """ """ #? | | ????????????????????????# """ """ """ """ #? | | ????????????????????????# " """ "" """ #? | | ????????????????????????# =%% #? | | ????????????????????????# "" """ """ #? | | ???????????????????????## %* "" """ """ #? | | ??????????????????????##""%%[ "" """ """ #? | | ??????????????????????# #%" #? | | ????????????????????? "#"!%"" " """ "" %#? | | ??????????????????? ?# # "" """ "" #? | | ?????????????????? ???#?# "" "" """ """ #? | | ????????????????????????# #? | | ????????????????????????# % #? | | ??????????????????????######### "###########? | | ??????????????? "##?????????? | | ??????????????????????#######"# " #?????????? | | ????????????????????????????###!"##?????????? | | ??????????????????????????????#!""##????????? | | ????????????????????????#######! #????????? | | ????????????????????????# ## #????????? | | ????????????????????????#@#######? #????????? | | ??????????????????????? #??????? #????????? | | ????????????????????? # #????????#????????? | | ??????????????????? #?????????????????? | | ????????????????? d ? ?????????????????? | | ????????????????# ?? ?????????????????? | | ????????????????## d??? ?????????????????? | | ?????????????????####?? % ?????????????????? | | ??????????????????????? ?????????????????? | | ??????????????????????? ?????????????????? | | ??????????????????????? ????????????????? | | ??????????????????????### ????????????????? | | ?????????????????????????|##????????????????? | | ????????????????????????? ??????????????????? | | ????????????????????????? ??????????????????? | | ????????????????????????? ??????????????????? | | ????????????????????????????????????????????? | | ????????????????????????????????????????????? | | ????????????????????????????????????????????? | | ????????????????????????????????????????????? | | ????????????????????????????????????????????? | | ????????????????????????????????????????????? | | ????????????????????????????????????????????? | | ????????????????????????????????????????????? | | ????????????????????????????????????????????? | +----------------------------------------------------+ Best States ------------- Heat Dissipation 38 Energy Generation 12 Energy Capacity 265 Matter Stores 236 Matter Capacity 300 Sight Range 16 Terrain Scan Density 10 Armor Coverage 150 Resistance: TH 10 Evasion (%) 40 Item Schematics ----------------- None Robot Schematics ------------------ None Fabricated ------------ Nothing Alien Tech Used ----------------- None Achievements -------------- None Challenges ------------ None Game ------ Seed ImpactDeliveryPerforator Manual? 0 Play Time 00:21:00 Cumulative 6.2 hours Start 2022.07.04 @ 00:41:50 End 2022.07.04 @ 01:00:03 Sessions 1 Manual Loads 0 Difficulty Rogue Special Mode None Game No. 7 Rogue 7 Adventurer 0 Explorer 0 Win Type - Total 0 Types 0/0/0/0/0/0/0/0/0 Lore% 12 Gallery% 12 Achievement% 12 Wizard Run 0 Options --------- ASCII 0 Keyboard 0 Movement Mouse Keybinds 0 Fullscreen 1 Font 24/Terminus Map View 76x50 Tactical HUD 0 Map Filters NONE Filters NONE Steam 1 RUN: dcdc7ff6-8090-492a-97d2-f0900f5754eb